[Event "Titled Tuesday Blitz April 05 Early 2022"]
[White "Heinemann, Josefine"]
[Black "Von Buelow, Georg"]
[WhiteFideId "12900460"]
[BlackFideId "4620658"]
[WhiteElo "2300"]
[BlackElo "2173"]
[Result "1-0"]
[Round "07"]
[TimeControl "180+1"]
[Date "2022.04.05"]
[WhiteClock "0:00:08"]
[BlackClock "0:00:08"]

1. b3 {[%clk 0:03:00]}  d5 {[%clk 0:02:59]} 2. Bb2 {[%clk 0:03:00]}  Bg4 {[%clk 0:03:00]} 3. g3 {[%clk 0:02:55]}  e6 {[%clk 0:02:59]} 4. Bg2 {[%clk 0:02:56]}  Nd7 {[%clk 0:02:57]} 5. Nf3 {[%clk 0:02:55]}  Bxf3 {[%clk 0:02:56]} 6. Bxf3 {[%clk 0:02:55]}  Ngf6 {[%clk 0:02:57]} 7. O-O {[%clk 0:02:55]}  c6 {[%clk 0:02:57]} 8. c4 {[%clk 0:02:55]}  Bd6 {[%clk 0:02:56]} 9. Nc3 {[%clk 0:02:50]}  h5 {[%clk 0:02:56]} 10. h4 {[%clk 0:02:48]}  Ne5 {[%clk 0:02:50]} 11. Bg2 {[%clk 0:02:47]}  Nfg4 {[%clk 0:02:49]} 12. d4 {[%clk 0:02:43]}  Nd7 {[%clk 0:02:41]} 13. e4 {[%clk 0:02:37]}  g5 {[%clk 0:02:31]} 14. e5 {[%clk 0:02:29]}  Bb4 {[%clk 0:02:11]} 15. hxg5 {[%clk 0:02:24]}  Qxg5 {[%clk 0:02:10]} 16. Qc1 {[%clk 0:02:23]}  Qg7 {[%clk 0:02:01]} 17. Qf4 {[%clk 0:02:14]}  O-O-O {[%clk 0:01:54]} 18. Rac1 {[%clk 0:02:04]}  Kb8 {[%clk 0:01:53]} 19. a3 {[%clk 0:02:01]}  Be7 {[%clk 0:01:52]} 20. cxd5 {[%clk 0:01:54]}  Bg5 {[%clk 0:01:51]} 21. Qf3 {[%clk 0:01:48]}  cxd5 {[%clk 0:01:34]} 22. Rc2 {[%clk 0:01:35]}  Nb6 {[%clk 0:01:20]} 23. Nb5 {[%clk 0:01:32]}  Rd7 {[%clk 0:00:52]} 24. Bc1 {[%clk 0:01:26]}  Be7 {[%clk 0:00:50]} 25. Bf4 {[%clk 0:01:20]}  h4 {[%clk 0:00:49]} 26. gxh4 {[%clk 0:01:17]}  Rxh4 {[%clk 0:00:41]} 27. Bg3 {[%clk 0:01:15]}  Rh8 {[%clk 0:00:34]} 28. Rfc1 {[%clk 0:01:12]}  a6 {[%clk 0:00:31]} 29. Nd6 {[%clk 0:01:11]}  Bxd6 {[%clk 0:00:30]} 30. exd6 {[%clk 0:01:11]}  Qxd4 {[%clk 0:00:22]} 31. Rc7 {[%clk 0:01:01]}  Rhd8 {[%clk 0:00:18]} 32. Rxd7 {[%clk 0:00:55]}  Rxd7 {[%clk 0:00:18]} 33. Bh3 {[%clk 0:00:50]}  Ne5 {[%clk 0:00:15]} 34. Qf6 {[%clk 0:00:40]}  Nc6 {[%clk 0:00:12]} 35. Qg5 {[%clk 0:00:26]}  Qb2 {[%clk 0:00:12]} 36. Re1 {[%clk 0:00:19]}  Ka7 {[%clk 0:00:11]} 37. b4 {[%clk 0:00:15]}  Qxa3 {[%clk 0:00:11]} 38. b5 {[%clk 0:00:15]}  axb5 {[%clk 0:00:11]} 39. Qg7 {[%clk 0:00:14]}  Na4 {[%clk 0:00:08]} 40. Bxe6 {[%clk 0:00:13]}  Rxd6 {[%clk 0:00:07]} 41. Bxd6 {[%clk 0:00:13]}  Qxd6 {[%clk 0:00:08]} 42. Bh3 {[%clk 0:00:12]}  d4 {[%clk 0:00:06]} 43. Qxf7 {[%clk 0:00:12]}  d3 {[%clk 0:00:07]} 44. Rd1 {[%clk 0:00:12]}  Ne5 {[%clk 0:00:07]} 45. Qf4 {[%clk 0:00:10]}  Nc3 {[%clk 0:00:06]} 46. Qe3+ {[%clk 0:00:09]}  Kb8 {[%clk 0:00:06]} 47. Rd2 {[%clk 0:00:08]}  Ne2+ {[%clk 0:00:05]} 48. Kf1 {[%clk 0:00:07]}  Qd5 {[%clk 0:00:04]} 49. Bg2 {[%clk 0:00:07]}  Qc5 {[%clk 0:00:04]} 50. Qxc5 {[%clk 0:00:06]}  Nc4 {[%clk 0:00:04]} 51. Qf8+ {[%clk 0:00:06]}  Ka7 {[%clk 0:00:05]} 52. Rxd3 {[%clk 0:00:07]}  Nf4 {[%clk 0:00:04]} 53. Qxf4 {[%clk 0:00:06]}  b6 {[%clk 0:00:04]} 54. Qc7+ {[%clk 0:00:05]}  Ka6 {[%clk 0:00:05]} 55. Rd8 {[%clk 0:00:05]}  Ka5 {[%clk 0:00:06]} 56. Ra8+ {[%clk 0:00:05]}  Kb4 {[%clk 0:00:07]} 57. Qe7+ {[%clk 0:00:05]}  Kb3 {[%clk 0:00:07]} 58. Bd5 {[%clk 0:00:05]}  Kc2 {[%clk 0:00:07]} 59. Bxc4 {[%clk 0:00:06]}  bxc4 {[%clk 0:00:07]} 60. Rc8 {[%clk 0:00:06]}  c3 {[%clk 0:00:08]} 61. Qb4 {[%clk 0:00:06]}  Kd1 {[%clk 0:00:08]} 62. Rxc3 {[%clk 0:00:07]}  b5 {[%clk 0:00:09]} 63. Qb2 {[%clk 0:00:07]}  b4 {[%clk 0:00:08]} 64. Rc1# {[%clk 0:00:08]} 1-0


[Site "https://www.chess.com"]

[Event "Titled Tuesday Blitz April 05 Early 2022"]
[White "Hernandez Bermudez, Ulises Eduardo"]
[Black "Kostiukov, Alexandr"]
[WhiteFideId "3902510"]
[BlackFideId "14108100"]
[WhiteElo "2056"]
[BlackElo "2202"]
[Result "0-1"]
[Round "07"]
[TimeControl "180+1"]
[Date "2022.04.05"]
[WhiteClock "0:00:07"]
[BlackClock "0:01:14"]

1. e4 {[%clk 0:02:59]}  c5 {[%clk 0:02:57]} 2. Nf3 {[%clk 0:02:57]}  g6 {[%clk 0:02:57]} 3. c4 {[%clk 0:02:56]}  Bg7 {[%clk 0:02:57]} 4. d4 {[%clk 0:02:56]}  cxd4 {[%clk 0:02:56]} 5. Nxd4 {[%clk 0:02:57]}  Nc6 {[%clk 0:02:57]} 6. Be3 {[%clk 0:02:56]}  Nf6 {[%clk 0:02:55]} 7. f3 {[%clk 0:02:55]}  Qb6 {[%clk 0:02:52]} 8. Nf5 {[%clk 0:01:29]}  Qxb2 {[%clk 0:02:49]} 9. Nxg7+ {[%clk 0:01:29]}  Kf8 {[%clk 0:02:48]} 10. Nd2 {[%clk 0:01:22]}  Kxg7 {[%clk 0:02:47]} 11. Bd3 {[%clk 0:01:21]}  Qc3 {[%clk 0:02:43]} 12. Ke2 {[%clk 0:00:45]}  Nb4 {[%clk 0:02:20]} 13. Qb1 {[%clk 0:00:32]}  Qxd3+ {[%clk 0:02:15]} 14. Qxd3 {[%clk 0:00:33]}  Nxd3 {[%clk 0:02:15]} 15. Kxd3 {[%clk 0:00:33]}  d6 {[%clk 0:02:15]} 16. Rab1 {[%clk 0:00:32]}  b6 {[%clk 0:02:13]} 17. Nb3 {[%clk 0:00:31]}  Ba6 {[%clk 0:02:09]} 18. Rhc1 {[%clk 0:00:20]}  Rhc8 {[%clk 0:01:59]} 19. Nd4 {[%clk 0:00:19]}  Nd7 {[%clk 0:01:59]} 20. Nb5 {[%clk 0:00:17]}  Ne5+ {[%clk 0:01:53]} 21. Kd4 {[%clk 0:00:11]}  Kf8 {[%clk 0:01:31]} 22. Bf4 {[%clk 0:00:08]}  Nc6+ {[%clk 0:01:25]} 23. Ke3 {[%clk 0:00:08]}  Na5 {[%clk 0:01:24]} 24. Kd4 {[%clk 0:00:07]}  e5+ {[%clk 0:01:14]} 0-1


[Site "https://www.chess.com"]

[Event "Titled Tuesday Blitz April 05 Early 2022"]
[White "Hernandez Jimenez, Alexander Andres"]
[Black "Biletskiy, Danylo"]
[WhiteFideId "3900452"]
[BlackFideId "14155419"]
[WhiteElo "2098"]
[BlackElo "2087"]
[Result "1-0"]
[Round "07"]
[TimeControl "180+1"]
[Date "2022.04.05"]
[WhiteClock "0:01:01"]
[BlackClock "0:00:25"]

1. e4 {[%clk 0:03:00]}  c5 {[%clk 0:02:42]} 2. Nf3 {[%clk 0:02:58]}  Nc6 {[%clk 0:02:42]} 3. d4 {[%clk 0:02:58]}  cxd4 {[%clk 0:02:43]} 4. Nxd4 {[%clk 0:02:59]}  Nf6 {[%clk 0:02:44]} 5. Nc3 {[%clk 0:02:59]}  e5 {[%clk 0:02:44]} 6. Ndb5 {[%clk 0:02:59]}  d6 {[%clk 0:02:44]} 7. Bg5 {[%clk 0:02:59]}  a6 {[%clk 0:02:44]} 8. Na3 {[%clk 0:02:57]}  b5 {[%clk 0:02:44]} 9. Bxf6 {[%clk 0:02:58]}  gxf6 {[%clk 0:02:43]} 10. Nd5 {[%clk 0:02:58]}  Bg7 {[%clk 0:02:43]} 11. c3 {[%clk 0:02:58]}  Be6 {[%clk 0:02:41]} 12. Nc2 {[%clk 0:02:59]}  O-O {[%clk 0:02:32]} 13. a4 {[%clk 0:02:52]}  Rb8 {[%clk 0:02:31]} 14. axb5 {[%clk 0:02:51]}  axb5 {[%clk 0:02:32]} 15. Ncb4 {[%clk 0:02:36]}  Nxb4 {[%clk 0:02:31]} 16. Nxb4 {[%clk 0:02:36]}  f5 {[%clk 0:02:31]} 17. exf5 {[%clk 0:02:34]}  Bxf5 {[%clk 0:02:30]} 18. Be2 {[%clk 0:02:31]}  Qg5 {[%clk 0:02:19]} 19. h4 {[%clk 0:02:11]}  Qxg2 {[%clk 0:02:01]} 20. Bf3 {[%clk 0:02:11]}  Qg6 {[%clk 0:02:00]} 21. Nd5 {[%clk 0:02:02]}  Rfe8 {[%clk 0:01:51]} 22. Ra7 {[%clk 0:01:59]}  Kh8 {[%clk 0:01:42]} 23. h5 {[%clk 0:01:30]}  Qe6 {[%clk 0:01:40]} 24. Nc7 {[%clk 0:01:28]}  Qe7 {[%clk 0:01:32]} 25. Nxe8 {[%clk 0:01:18]}  Qxa7 {[%clk 0:01:32]} 26. Nxg7 {[%clk 0:01:18]}  Kxg7 {[%clk 0:01:31]} 27. h6+ {[%clk 0:01:17]}  Kg8 {[%clk 0:01:13]} 28. Rg1+ {[%clk 0:01:14]}  Bg6 {[%clk 0:01:12]} 29. Qxd6 {[%clk 0:01:14]}  Re8 {[%clk 0:00:58]} 30. Qf6 {[%clk 0:01:08]}  Kf8 {[%clk 0:00:58]} 31. Rxg6 {[%clk 0:01:03]}  Qa1+ {[%clk 0:00:56]} 32. Bd1 {[%clk 0:01:02]}  Qxb2 {[%clk 0:00:25]} 33. Rg8+ {[%clk 0:01:01]} 1-0


[Site "https://www.chess.com"]

[Event "Titled Tuesday Blitz April 05 Early 2022"]
[White "Hoffmann, Asa"]
[Black "Perera Alfonso, Rene Humberto"]
[WhiteFideId "2001470"]
[BlackFideId "3514722"]
[WhiteElo "2117"]
[BlackElo "2313"]
[Result "1-0"]
[Round "07"]
[TimeControl "180+1"]
[Date "2022.04.05"]
[WhiteClock "0:01:54"]
[BlackClock "0:02:33"]

1. d4 {[%clk 0:02:54]}  d5 {[%clk 0:02:50]} 2. Bg5 {[%clk 0:02:53]}  h6 {[%clk 0:02:49]} 3. Bh4 {[%clk 0:02:53]}  c5 {[%clk 0:02:48]} 4. e3 {[%clk 0:02:53]}  Qb6 {[%clk 0:02:45]} 5. Nc3 {[%clk 0:02:52]}  a6 {[%clk 0:02:43]} 6. Nxd5 {[%clk 0:02:48]}  Qxb2 {[%clk 0:02:42]} 7. Nc7+ {[%clk 0:02:44]}  Kd8 {[%clk 0:02:39]} 8. Nxa8 {[%clk 0:02:44]}  Qc3+ {[%clk 0:02:39]} 9. Ke2 {[%clk 0:02:43]}  Be6 {[%clk 0:02:37]} 10. dxc5+ {[%clk 0:02:38]}  Kc8 {[%clk 0:02:33]} 11. Nb6+ {[%clk 0:02:36]}  Kc7 {[%clk 0:02:34]} 12. Bg3+ {[%clk 0:02:35]}  Kc6 {[%clk 0:02:35]} 13. Rb1 {[%clk 0:02:17]}  Qxc5 {[%clk 0:02:34]} 14. Nf3 {[%clk 0:01:55]}  Nd7 {[%clk 0:02:33]} 15. Nd4+ {[%clk 0:01:54]} 1-0


[Site "https://www.chess.com"]

[Event "Titled Tuesday Blitz April 05 Early 2022"]
[White "Ianov, Viktor"]
[Black "Tsyhanchuk, Stanislav"]
[WhiteFideId "14102730"]
[BlackFideId "13505130"]
[WhiteElo "2161"]
[BlackElo "2078"]
[Result "1-0"]
[Round "07"]
[TimeControl "180+1"]
[Date "2022.04.05"]
[WhiteClock "0:01:15"]
[BlackClock "0:00:04"]

1. Nf3 {[%clk 0:03:00]}  d5 {[%clk 0:02:58]} 2. g3 {[%clk 0:03:00]}  Bg4 {[%clk 0:02:59]} 3. Bg2 {[%clk 0:03:01]}  Nd7 {[%clk 0:02:59]} 4. c4 {[%clk 0:03:01]}  e6 {[%clk 0:02:59]} 5. Qa4 {[%clk 0:02:58]}  Nf6 {[%clk 0:02:47]} 6. Ne5 {[%clk 0:02:57]}  c6 {[%clk 0:02:37]} 7. Nxg4 {[%clk 0:02:55]}  Nxg4 {[%clk 0:02:28]} 8. cxd5 {[%clk 0:02:55]}  Ngf6 {[%clk 0:02:19]} 9. dxc6 {[%clk 0:02:53]}  bxc6 {[%clk 0:02:19]} 10. Bxc6 {[%clk 0:02:49]}  Rc8 {[%clk 0:02:19]} 11. Nc3 {[%clk 0:02:48]}  Bc5 {[%clk 0:02:16]} 12. d4 {[%clk 0:02:46]}  Bxd4 {[%clk 0:02:10]} 13. O-O {[%clk 0:02:42]}  O-O {[%clk 0:01:58]} 14. Bxd7 {[%clk 0:02:36]}  Qxd7 {[%clk 0:01:54]} 15. Qxd7 {[%clk 0:02:35]}  Nxd7 {[%clk 0:01:55]} 16. Rd1 {[%clk 0:02:35]}  Bxc3 {[%clk 0:01:39]} 17. Rxd7 {[%clk 0:02:29]}  Bf6 {[%clk 0:01:38]} 18. Rxa7 {[%clk 0:02:16]}  Rc2 {[%clk 0:01:36]} 19. Kf1 {[%clk 0:02:12]}  Rfc8 {[%clk 0:01:32]} 20. Be3 {[%clk 0:02:12]}  Rxb2 {[%clk 0:01:29]} 21. Rd1 {[%clk 0:02:09]}  h5 {[%clk 0:01:18]} 22. a4 {[%clk 0:02:04]}  Rcc2 {[%clk 0:01:15]} 23. Rdd7 {[%clk 0:01:55]}  Rxe2 {[%clk 0:01:00]} 24. Rxf7 {[%clk 0:01:51]}  h4 {[%clk 0:00:58]} 25. Rfb7 {[%clk 0:01:39]}  Ra2 {[%clk 0:00:50]} 26. gxh4 {[%clk 0:01:35]}  Rec2 {[%clk 0:00:30]} 27. h5 {[%clk 0:01:34]}  Kh7 {[%clk 0:00:07]} 28. h6 {[%clk 0:01:33]}  Be5 {[%clk 0:00:06]} 29. hxg7 {[%clk 0:01:26]}  Bf4 {[%clk 0:00:06]} 30. Ra8 {[%clk 0:01:22]}  Bxe3 {[%clk 0:00:03]} 31. g8=Q+ {[%clk 0:01:21]}  Kh6 {[%clk 0:00:04]} 32. Rh7# {[%clk 0:01:15]} 1-0


[Site "https://www.chess.com"]

[Event "Titled Tuesday Blitz April 05 Early 2022"]
[White "Krysa, Leandro"]
[Black "Begunov, Konstantin"]
[WhiteFideId "116807"]
[BlackFideId "4118510"]
[WhiteElo "2490"]
[BlackElo "2262"]
[Result "0-1"]
[Round "07"]
[TimeControl "180+1"]
[Date "2022.04.05"]
[WhiteClock "0:00:07"]
[BlackClock "0:00:20"]

1. e4 {[%clk 0:03:00]}  c5 {[%clk 0:02:55]} 2. Nf3 {[%clk 0:03:00]}  d6 {[%clk 0:02:54]} 3. d4 {[%clk 0:03:00]}  cxd4 {[%clk 0:02:53]} 4. Nxd4 {[%clk 0:03:01]}  Nf6 {[%clk 0:02:53]} 5. Nc3 {[%clk 0:03:02]}  a6 {[%clk 0:02:54]} 6. Rg1 {[%clk 0:02:59]}  e6 {[%clk 0:02:49]} 7. g4 {[%clk 0:02:58]}  h6 {[%clk 0:02:49]} 8. h4 {[%clk 0:02:57]}  g6 {[%clk 0:02:44]} 9. g5 {[%clk 0:02:54]}  hxg5 {[%clk 0:02:44]} 10. Bxg5 {[%clk 0:02:54]}  Be7 {[%clk 0:02:42]} 11. Qd2 {[%clk 0:02:51]}  Nc6 {[%clk 0:02:37]} 12. O-O-O {[%clk 0:02:49]}  Bd7 {[%clk 0:02:28]} 13. f4 {[%clk 0:02:45]}  Qb6 {[%clk 0:02:23]} 14. Kb1 {[%clk 0:02:34]}  Nxd4 {[%clk 0:02:17]} 15. Qxd4 {[%clk 0:02:33]}  Qxd4 {[%clk 0:02:17]} 16. Rxd4 {[%clk 0:02:34]}  Bc6 {[%clk 0:01:48]} 17. Bg2 {[%clk 0:02:28]}  Rd8 {[%clk 0:01:31]} 18. Rd2 {[%clk 0:02:15]}  Ng4 {[%clk 0:01:21]} 19. Bf3 {[%clk 0:02:03]}  Nf6 {[%clk 0:00:57]} 20. a3 {[%clk 0:01:24]}  Nh5 {[%clk 0:00:55]} 21. Bxe7 {[%clk 0:01:19]}  Kxe7 {[%clk 0:00:56]} 22. Ne2 {[%clk 0:01:12]}  Nf6 {[%clk 0:00:54]} 23. Rh1 {[%clk 0:00:56]}  Nxe4 {[%clk 0:00:50]} 24. Bxe4 {[%clk 0:00:57]}  Bxe4 {[%clk 0:00:51]} 25. Rh3 {[%clk 0:00:54]}  Bf5 {[%clk 0:00:40]} 26. Rh2 {[%clk 0:00:49]}  Rh7 {[%clk 0:00:36]} 27. Ng3 {[%clk 0:00:41]}  Bg4 {[%clk 0:00:36]} 28. Ne4 {[%clk 0:00:37]}  d5 {[%clk 0:00:30]} 29. Ng5 {[%clk 0:00:37]}  Rh5 {[%clk 0:00:29]} 30. Rdg2 {[%clk 0:00:37]}  Bf5 {[%clk 0:00:28]} 31. Rf2 {[%clk 0:00:20]}  Rdh8 {[%clk 0:00:28]} 32. Nf3 {[%clk 0:00:20]}  Be4 {[%clk 0:00:27]} 33. Nd2 {[%clk 0:00:13]}  Rxh4 {[%clk 0:00:27]} 34. Rxh4 {[%clk 0:00:13]}  Rxh4 {[%clk 0:00:27]} 35. b4 {[%clk 0:00:13]}  Kf6 {[%clk 0:00:26]} 36. Kb2 {[%clk 0:00:13]}  Kf5 {[%clk 0:00:26]} 37. Nb3 {[%clk 0:00:07]}  Rxf4 {[%clk 0:00:23]} 38. Nd4+ {[%clk 0:00:07]}  Ke5 {[%clk 0:00:24]} 39. Rd2 {[%clk 0:00:07]}  g5 {[%clk 0:00:21]} 40. Nb3 {[%clk 0:00:07]}  g4 {[%clk 0:00:21]} 41. Nc5 {[%clk 0:00:07]}  g3 {[%clk 0:00:20]} 0-1


[Site "https://www.chess.com"]

[Event "Titled Tuesday Blitz April 05 Early 2022"]
[White "Lamaze, Simon"]
[Black "Voege, Tobias"]
[WhiteFideId "36069264"]
[BlackFideId "1270513"]
[WhiteElo "1999"]
[BlackElo "2297"]
[Result "0-1"]
[Round "07"]
[TimeControl "180+1"]
[Date "2022.04.05"]
[WhiteClock "0:00:23"]
[BlackClock "0:00:27"]

1. d4 {[%clk 0:03:00]}  Nf6 {[%clk 0:02:57]} 2. c4 {[%clk 0:03:01]}  g6 {[%clk 0:02:57]} 3. g3 {[%clk 0:03:01]}  Bg7 {[%clk 0:02:57]} 4. Nc3 {[%clk 0:03:00]}  O-O {[%clk 0:02:57]} 5. Bg2 {[%clk 0:03:01]}  c5 {[%clk 0:02:57]} 6. d5 {[%clk 0:03:01]}  d6 {[%clk 0:02:57]} 7. Nf3 {[%clk 0:03:01]}  Na6 {[%clk 0:02:57]} 8. O-O {[%clk 0:03:01]}  Nc7 {[%clk 0:02:58]} 9. e4 {[%clk 0:03:02]}  Rb8 {[%clk 0:02:56]} 10. a4 {[%clk 0:03:02]}  a6 {[%clk 0:02:54]} 11. a5 {[%clk 0:03:00]}  b5 {[%clk 0:02:54]} 12. axb6 {[%clk 0:03:01]}  Rxb6 {[%clk 0:02:54]} 13. Re1 {[%clk 0:03:01]}  Ng4 {[%clk 0:02:50]} 14. Ra3 {[%clk 0:02:55]}  Ne5 {[%clk 0:02:47]} 15. Nxe5 {[%clk 0:02:52]}  Bxe5 {[%clk 0:02:48]} 16. Qd3 {[%clk 0:02:44]}  f5 {[%clk 0:02:27]} 17. f4 {[%clk 0:02:38]}  Bd4+ {[%clk 0:02:18]} 18. Kh1 {[%clk 0:02:34]}  fxe4 {[%clk 0:02:16]} 19. Bxe4 {[%clk 0:02:32]}  Bf5 {[%clk 0:01:59]} 20. b3 {[%clk 0:02:31]}  Qd7 {[%clk 0:01:45]} 21. Bxf5 {[%clk 0:02:26]}  gxf5 {[%clk 0:01:40]} 22. Be3 {[%clk 0:02:25]}  Bg7 {[%clk 0:01:32]} 23. Na4 {[%clk 0:02:20]}  Rb4 {[%clk 0:01:29]} 24. Bd2 {[%clk 0:02:18]}  Rb7 {[%clk 0:01:26]} 25. Ba5 {[%clk 0:02:17]}  Ne8 {[%clk 0:01:23]} 26. Nb6 {[%clk 0:02:08]}  Qc7 {[%clk 0:01:11]} 27. Ra2 {[%clk 0:01:34]}  Rxb6 {[%clk 0:01:07]} 28. Bxb6 {[%clk 0:01:33]}  Qxb6 {[%clk 0:01:08]} 29. Rxe7 {[%clk 0:01:33]}  Nf6 {[%clk 0:01:04]} 30. Rae2 {[%clk 0:01:06]}  Ne4 {[%clk 0:00:57]} 31. g4 {[%clk 0:00:59]}  Qd8 {[%clk 0:00:52]} 32. R2xe4 {[%clk 0:00:40]}  fxe4 {[%clk 0:00:47]} 33. Qxe4 {[%clk 0:00:41]}  Qb6 {[%clk 0:00:35]} 34. Qe3 {[%clk 0:00:23]}  a5 {[%clk 0:00:27]} 0-1


[Site "https://www.chess.com"]

[Event "Titled Tuesday Blitz April 05 Early 2022"]
[White "Lashkin, Jegor"]
[Black "Becerra, Juan David"]
[WhiteFideId "13907808"]
[BlackFideId "4404998"]
[WhiteElo "2368"]
[BlackElo "2277"]
[Result "1-0"]
[Round "07"]
[TimeControl "180+1"]
[Date "2022.04.05"]
[WhiteClock "0:01:09"]
[BlackClock "0:00:05"]

1. f4 {[%clk 0:03:00]}  d5 {[%clk 0:02:56]} 2. Nf3 {[%clk 0:03:00]}  Bg4 {[%clk 0:02:52]} 3. e3 {[%clk 0:03:01]}  e6 {[%clk 0:02:50]} 4. Be2 {[%clk 0:03:00]}  Nf6 {[%clk 0:02:49]} 5. O-O {[%clk 0:03:00]}  Be7 {[%clk 0:02:47]} 6. b3 {[%clk 0:03:00]}  O-O {[%clk 0:02:46]} 7. Bb2 {[%clk 0:03:01]}  Nc6 {[%clk 0:02:38]} 8. d3 {[%clk 0:02:59]}  Nd7 {[%clk 0:02:35]} 9. Nbd2 {[%clk 0:02:58]}  Bf6 {[%clk 0:02:33]} 10. Bxf6 {[%clk 0:02:58]}  Qxf6 {[%clk 0:02:28]} 11. d4 {[%clk 0:02:59]}  Qe7 {[%clk 0:02:18]} 12. c3 {[%clk 0:02:51]}  f6 {[%clk 0:02:16]} 13. c4 {[%clk 0:02:51]}  Rad8 {[%clk 0:01:57]} 14. Qc2 {[%clk 0:02:45]}  Nb4 {[%clk 0:01:50]} 15. Qb2 {[%clk 0:02:43]}  c6 {[%clk 0:01:47]} 16. a3 {[%clk 0:02:40]}  Na6 {[%clk 0:01:46]} 17. b4 {[%clk 0:02:40]}  Nc7 {[%clk 0:01:41]} 18. Rac1 {[%clk 0:02:37]}  Kh8 {[%clk 0:01:30]} 19. h3 {[%clk 0:02:29]}  Bh5 {[%clk 0:01:27]} 20. Bd3 {[%clk 0:02:23]}  Nb6 {[%clk 0:01:24]} 21. c5 {[%clk 0:02:17]}  Nd7 {[%clk 0:01:19]} 22. a4 {[%clk 0:02:17]}  a6 {[%clk 0:01:13]} 23. b5 {[%clk 0:02:10]}  axb5 {[%clk 0:01:14]} 24. axb5 {[%clk 0:02:10]}  cxb5 {[%clk 0:00:59]} 25. Bxb5 {[%clk 0:02:11]}  Nxb5 {[%clk 0:00:59]} 26. Qxb5 {[%clk 0:02:10]}  Rb8 {[%clk 0:00:59]} 27. Ra1 {[%clk 0:02:01]}  e5 {[%clk 0:00:56]} 28. Qb3 {[%clk 0:01:47]}  Bf7 {[%clk 0:00:35]} 29. Ra7 {[%clk 0:01:35]}  exf4 {[%clk 0:00:30]} 30. exf4 {[%clk 0:01:34]}  Nxc5 {[%clk 0:00:29]} 31. Qa3 {[%clk 0:01:30]}  Qc7 {[%clk 0:00:21]} 32. Qxc5 {[%clk 0:01:25]}  Qxf4 {[%clk 0:00:20]} 33. Rxb7 {[%clk 0:01:22]}  Qe3+ {[%clk 0:00:16]} 34. Kh1 {[%clk 0:01:20]}  Rbc8 {[%clk 0:00:15]} 35. Rc7 {[%clk 0:01:16]}  Rxc7 {[%clk 0:00:12]} 36. Qxc7 {[%clk 0:01:16]}  Bg8 {[%clk 0:00:10]} 37. Re1 {[%clk 0:01:16]}  Qf2 {[%clk 0:00:08]} 38. Qf4 {[%clk 0:01:13]}  Ra8 {[%clk 0:00:06]} 39. Qh4 {[%clk 0:01:09]}  Ra2 {[%clk 0:00:05]} 40. Qxf2 {[%clk 0:01:09]} 1-0


[Site "https://www.chess.com"]

[Event "Titled Tuesday Blitz April 05 Early 2022"]
[White "Lauridsen, Jesper Morch"]
[Black "Omariev, Maksim"]
[WhiteFideId "1401890"]
[BlackFideId "4193423"]
[WhiteElo "2260"]
[BlackElo "2499"]
[Result "1-0"]
[Round "07"]
[TimeControl "180+1"]
[Date "2022.04.05"]
[WhiteClock "0:00:50"]
[BlackClock "0:00:07"]

1. e4 {[%clk 0:03:00]}  c5 {[%clk 0:02:44]} 2. Nf3 {[%clk 0:03:00]}  d6 {[%clk 0:02:43]} 3. d4 {[%clk 0:02:59]}  cxd4 {[%clk 0:02:43]} 4. Nxd4 {[%clk 0:02:59]}  Nf6 {[%clk 0:02:43]} 5. Nc3 {[%clk 0:02:59]}  a6 {[%clk 0:02:43]} 6. Bc4 {[%clk 0:02:58]}  e6 {[%clk 0:02:44]} 7. a4 {[%clk 0:02:57]}  Be7 {[%clk 0:02:43]} 8. O-O {[%clk 0:02:56]}  O-O {[%clk 0:02:43]} 9. Ba2 {[%clk 0:02:56]}  Nc6 {[%clk 0:02:38]} 10. Be3 {[%clk 0:02:55]}  Qc7 {[%clk 0:02:33]} 11. f4 {[%clk 0:02:45]}  Nb4 {[%clk 0:01:57]} 12. Bb3 {[%clk 0:02:42]}  Nd7 {[%clk 0:01:55]} 13. Nf3 {[%clk 0:02:29]}  Nc5 {[%clk 0:01:51]} 14. Bd4 {[%clk 0:02:21]}  Nxb3 {[%clk 0:01:45]} 15. cxb3 {[%clk 0:02:22]}  Bd7 {[%clk 0:01:28]} 16. Bxg7 {[%clk 0:02:17]}  Kxg7 {[%clk 0:01:18]} 17. Qd4+ {[%clk 0:02:17]}  Bf6 {[%clk 0:00:58]} 18. Qxb4 {[%clk 0:02:16]}  a5 {[%clk 0:00:59]} 19. Qc4 {[%clk 0:02:10]}  Qxc4 {[%clk 0:00:59]} 20. bxc4 {[%clk 0:02:10]}  Rfc8 {[%clk 0:00:45]} 21. e5 {[%clk 0:02:07]}  dxe5 {[%clk 0:00:45]} 22. fxe5 {[%clk 0:02:05]}  Be7 {[%clk 0:00:45]} 23. b3 {[%clk 0:02:04]}  Bc6 {[%clk 0:00:36]} 24. Rad1 {[%clk 0:02:00]}  Bb4 {[%clk 0:00:34]} 25. Nb5 {[%clk 0:01:59]}  Rd8 {[%clk 0:00:31]} 26. Nd6 {[%clk 0:01:35]}  Rd7 {[%clk 0:00:14]} 27. Ng5 {[%clk 0:01:25]}  Rf8 {[%clk 0:00:07]} 28. h4 {[%clk 0:01:17]}  h6 {[%clk 0:00:05]} 29. Nge4 {[%clk 0:01:01]}  Bxe4 {[%clk 0:00:05]} 30. Nxe4 {[%clk 0:01:00]}  Rfd8 {[%clk 0:00:06]} 31. Rxd7 {[%clk 0:00:55]}  Rxd7 {[%clk 0:00:07]} 32. Nf6 {[%clk 0:00:54]}  Rd3 {[%clk 0:00:07]} 33. Nh5+ {[%clk 0:00:51]}  Kg6 {[%clk 0:00:07]} 34. Nf4+ {[%clk 0:00:50]} 1-0


[Site "https://www.chess.com"]